[Event "CZE-ch Open 2019"]
[Site "Ostrava"]
[Date "2019.05.01"]
[Round "5.26"]
[White "Vanek, Tomas"]
[Black "Liska, Jiri"]
[Result "0-1"]
[ECO "B03"]
[WhiteElo "2095"]
[BlackElo "2236"]
[Annotator "NA"]
[PlyCount "128"]
[EventDate "2019.04.27"]
[EventType "swiss"]
[EventCountry "CZE"]
[SourceTitle "playchess.com"]
[Source "ChessBase"]
[SourceQuality "1"]
[TimeControl "40/5400+30:1800+30"]

1. e4 {[%emt 0:00:00]} Nf6 {[%emt 0:00:10]} 2. e5 {[%emt 0:00:00]} Nd5 {[%emt 0:00:03]} 3. c4 {[%emt 0:00:04]} Nb6 {[%emt 0:00:06]} 4. d4 {[%emt 0:00:07]} d6 {[%emt 0:00:12]} 5. f4 {[%emt 0:00:08]} dxe5 {[%emt 0:00:40]} 6. fxe5 {[%emt 0:00:06]} Nc6 {[%emt 0:01:14]} 7. Be3 {[%emt 0:00:34]} Bf5 {[%emt 0:00:43]} 8. Nc3 {[%emt 0:00:16]} e6 {[%emt 0:01:30]} 9. Nf3 {[%emt 0:00:20]} Bg4 {[%emt 0:01:16]} 10. Bf2 {[%emt 0:00:13] B03: Alekhine's Defence: Four Pawns Attack} (10. Be2 Bxf3 11. gxf3 Qh4+ 12. Bf2 Qf4 13. c5 Nd5 14. Nxd5 exd5 15. Qd2 Qxd2+ 16. Kxd2 g6 17. f4 Bh6 18. Be3 f6 19. h4 O-O 20. h5 fxe5 21. fxe5 Bxe3+ 22. Kxe3 {1-0 (55) Onischuk,V (2591)-Kovalenko,I (2643) Khanty-Mansiysk 2013}) 10... Be7 {[%emt 0:06:45]} 11. Be2 $146 {[%emt 0:02:55]} ({Predecessor:} 11. Qd3 O-O 12. a3 f6 13. exf6 Bxf6 14. O-O-O Qe7 15. Ne4 Rad8 16. Nxf6+ Qxf6 17. Be2 Rd7 {0-1 (64) Littlejohn,K (1541)-Bar Jona,A (2081) Dallas 1998}) 11... O-O {[%emt 0:01:24]} 12. c5 {[%emt 0:23:44]} Nd5 {[%emt 0:01:45]} 13. h3 {[%emt 0:11:51]} Bh5 {[%emt 0:01:20]} 14. Nxd5 {[%emt 0:07:43]} Qxd5 {[%emt 0:00:19]} 15. O-O {[%emt 0:00:51]} Rad8 {[%emt 0:00:58]} 16. Qe1 {[%emt 0:06:05]} a5 {[%emt 0:03:12]} 17. Qc3 {[%emt 0:02:11]} Bxf3 {[%emt 0:17:26]} 18. Bxf3 {[%emt 0:04:07]} Nxd4 {[%emt 0:00:10]} 19. Bxd5 {[%emt 0:02:30]} Ne2+ {[%emt 0:00:07]} 20. Kh1 {[%emt 0:01:11]} Nxc3 {[%emt 0:00:03]} 21. Bxb7 {[%emt 0:01:12]} Na4 {[%emt 0:00:11]} 22. b3 {[%emt 0:19:00]} Nxc5 {[%emt 0:00:44]} 23. Rac1 {[%emt 0:00:08]} Nxb7 {[%emt 0:20:44]} 24. Rxc7 {[%emt 0:00:06]} Bb4 {[%emt 0:00:07]} 25. Rxb7 {[%emt 0:00:05]} Rd5 {[%emt 0:00:08]} 26. Bg3 {[%emt 0:09:26]} Bc3 {[%emt 0:02:42]} 27. Rc1 {[%emt 0:02:00]} Bxe5 {[%emt 0:00:18]} 28. Bxe5 {[%emt 0:00:06]} Rxe5 {[%emt 0:00:05]} 29. Ra7 {[%emt 0:00:13]} h5 {[%emt 0:00:33]} 30. Rf1 {[%emt 0:02:20]} f6 {[%emt 0:07:05]} 31. Rc1 {[%emt 0:00:39]} Rd8 {[%emt 0:02:17]} 32. Rcc7 {[%emt 0:01:37]} Rd1+ {[%emt 0:01:47]} 33. Kh2 {[%emt 0:00:05]} Rg5 {[%emt 0:00:09]} 34. Rc2 {[%emt 0:01:27]} Kh7 {[%emt 0:05:33]} 35. Re2 {[%emt 0:02:31]} Rdd5 {[%emt 0:01:52]} 36. a3 {[%emt 0:00:59]} Rd3 {[%emt 0:20:43]} 37. Rb7 {[%emt 0:00:20]} e5 {[%emt 0:00:44]} 38. Rb5 {[%emt 0:00:45]} a4 {[%emt 0:00:14]} 39. bxa4 {[%emt 0:00:40]} Rxa3 {[%emt 0:00:02]} 40. Rb4 {[%emt 0:00:16]} Kh6 {[%emt 0:00:38]} 41. Reb2 {[%emt 0:03:15]} Rgg3 {[%emt 0:09:36]} 42. Rb8 {[%emt 0:12:58]} h4 {[%emt 0:09:33]} 43. R8b4 {[%emt 0:02:33]} Kg5 {[%emt 0:03:06]} 44. Re4 {[%emt 0:02:16]} g6 {[%emt 0:01:38]} 45. Rc2 {[%emt 0:08:26]} Rgc3 {[%emt 0:04:45]} 46. Rb2 {[%emt 0:00:16]} Rab3 {[%emt 0:01:20]} 47. Rd2 {[%emt 0:00:35]} Rd3 {[%emt 0:00:29]} 48. Rc2 {[%emt 0:01:01]} Rdc3 {[%emt 0:02:58]} 49. Rd2 {[%emt 0:00:25]} Rc1 {[%emt 0:00:17]} 50. Rg4+ {[%emt 0:01:03]} Kh5 {[%emt 0:00:05]} 51. Rd8 {[%emt 0:01:26]} g5 {[%emt 0:00:46]} 52. Re4 {[%emt 0:02:16]} Rbb1 {[%emt 0:02:09]} 53. g4+ {[%emt 0:00:14]} hxg3+ {[%emt 0:00:09]} 54. Kxg3 {[%emt 0:00:05]} Rb3+ {[%emt 0:00:18]} 55. Kf2 {[%emt 0:00:17]} Rc2+ {[%emt 0:00:15]} 56. Re2 {[%emt 0:00:05]} Rxe2+ {[%emt 0:00:28]} 57. Kxe2 {[%emt 0:00:04]} Kg6 {[%emt 0:00:15]} 58. a5 {[%emt 0:00:29]} Rxh3 {[%emt 0:00:13]} 59. a6 {[%emt 0:00:14]} Ra3 {[%emt 0:00:19]} 60. Ra8 {[%emt 0:00:33]} Kf5 $19 {[%emt 0:02:42]} (60... g4 $142 61. a7) 61. a7 {[%emt 0:00:04]} g4 {[%emt 0:00:28]} 62. Kf2 {[%emt 0:00:35]} Ra2+ {[%emt 0:00:49]} 63. Kg3 {[%emt 0:00:06]} e4 {[%emt 0:00:29]} 64. Rb8 {[%emt 0:01:27]} Ra3+ {[%emt 0:00:06]} 0-1

[Event "CZE-ch Open 2019"]
[Site "Ostrava"]
[Date "2019.05.01"]
[Round "5.27"]
[White "Jedlicka, Ales"]
[Black "Kana, Pavel"]
[Result "1/2-1/2"]
[ECO "D35"]
[WhiteElo "2236"]
[BlackElo "2013"]
[Annotator "NA"]
[PlyCount "114"]
[EventDate "2019.04.27"]
[EventType "swiss"]
[EventCountry "CZE"]
[SourceTitle "playchess.com"]
[Source "ChessBase"]
[SourceQuality "1"]
[TimeControl "40/5400+30:1800+30"]

1. d4 {[%emt 0:00:00]} d5 {[%emt 0:00:00]} 2. c4 {[%emt 0:00:00]} e6 {[%emt 0:00:00]} 3. Nc3 {[%emt 0:00:11]} Nf6 {[%emt 0:00:10]} 4. cxd5 {[%emt 0:00:12]} exd5 {[%emt 0:00:26]} 5. Bg5 {[%emt 0:00:12]} Be7 {[%emt 0:01:01]} 6. e3 {[%emt 0:00:21]} O-O {[%emt 0:03:59]} 7. Bd3 {[%emt 0:00:33]} Re8 {[%emt 0:05:26]} 8. Nge2 {[%emt 0:01:37]} Nbd7 {[%emt 0:04:58]} 9. O-O {[%emt 0:03:35]} c6 {[%emt 0:02:30]} 10. Qc2 {[%emt 0:01:02]} Nf8 {[%emt 0:04:41]} 11. Rad1 {[%emt 0:02:03]} g6 {[%emt 0:10:45]} 12. f3 {[%emt 0:01:34]} Ne6 {[%emt 0:03:57]} 13. Bh4 {[%emt 0:00:45]} Ng7 {[%emt 0:10:33]} 14. Bf2 {[%emt 0:01:24]} Bf5 {[%emt 0:03:18]} 15. e4 {[%emt 0:03:11]} Be6 {[%emt 0:02:58]} 16. e5 {[%emt 0:03:04]} Nd7 {[%emt 0:01:08]} 17. Ng3 {[%emt 0:02:06]} Rc8 {[%emt 0:08:40]} 18. f4 {[%emt 0:02:01]} f5 {[%emt 0:04:50]} 19. exf6 {[%emt 0:01:31]} Nxf6 {[%emt 0:05:47]} 20. f5 {[%emt 0:04:09]} gxf5 {[%emt 0:03:07]} 21. Bxf5 {[%emt 0:01:22]} Qd7 {[%emt 0:04:18]} 22. Bxe6+ {[%emt 0:00:58]} Qxe6 {[%emt 0:00:39]} 23. Rde1 {[%emt 0:01:15]} Qg4 {[%emt 0:01:55]} 24. Qb3 {[%emt 0:08:01]} b6 {[%emt 0:02:55]} 25. Nce4 {[%emt 0:09:21]} Kh8 {[%emt 0:02:47]} 26. Nxf6 {[%emt 0:01:51]} Bxf6 {[%emt 0:00:02]} 27. h3 {[%emt 0:02:01]} Qg6 {[%emt 0:02:09]} 28. Rxe8+ {[%emt 0:00:34]} Rxe8 {[%emt 0:00:40]} 29. Qf3 {[%emt 0:02:54]} Be7 {[%emt 0:03:15]} 30. Be3 {[%emt 0:11:45]} Bd6 {[%emt 0:00:36]} 31. Bf4 {[%emt 0:04:25]} Rf8 {[%emt 0:02:04]} 32. Qe3 {[%emt 0:00:31]} Kg8 {[%emt 0:02:51]} 33. Bxd6 {[%emt 0:03:10]} Rxf1+ {[%emt 0:00:45]} 34. Kxf1 {[%emt 0:00:42]} Qxd6 {[%emt 0:00:03]} 35. Qg5 {[%emt 0:00:37]} Qd7 {[%emt 0:01:52]} 36. Kg1 {[%emt 0:01:20]} Kf7 {[%emt 0:00:40]} 37. Qf4+ {[%emt 0:03:53]} Kg8 {[%emt 0:00:43]} 38. h4 {[%emt 0:00:26]} h5 {[%emt 0:00:57]} 39. Qg5 {[%emt 0:04:29]} Qf7 {[%emt 0:01:11]} 40. b4 {[%emt 0:03:29]} Kh7 {[%emt 0:00:44]} 41. Kh2 {[%emt 0:41:46]} Qg6 {[%emt 0:07:39]} 42. Qe7 {[%emt 0:00:00]} Qg4 {[%emt 0:01:19]} 43. Qf6 {[%emt 0:00:00]} Qg6 {[%emt 0:01:35]} 44. Qe5 {[%emt 0:00:00]} Qg4 {[%emt 0:01:07]} 45. Qf6 {[%emt 0:00:00]} Qg6 {[%emt 0:00:59]} 46. Qe7 {[%emt 0:00:00]} Qg4 {[%emt 0:00:38]} 47. a4 {[%emt 0:00:00]} Kg6 {[%emt 0:03:22]} 48. Ne2 {[%emt 0:00:00]} Ne6 {[%emt 0:05:32]} 49. Qe8+ {[%emt 0:00:00]} Kf6 {[%emt 0:00:47]} 50. Qh8+ {[%emt 0:00:00]} Kf7 {[%emt 0:02:57]} 51. Qe5 {[%emt 0:00:00]} Qxh4+ {[%emt 0:00:37]} 52. Kg1 {[%emt 0:00:00]} Qe1+ {[%emt 0:00:10]} 53. Kh2 {[%emt 0:00:00]} Qh4+ {[%emt 0:01:45]} 54. Kg1 {[%emt 0:00:00]} Qe1+ {[%emt 0:02:21]} 55. Kh2 {[%emt 0:00:00]} Qh4+ {[%emt 0:01:03]} 56. Kg1 {[%emt 0:00:00]} Qe1+ {[%emt 0:00:05]} 57. Kh2 Qxb4 1/2-1/2

[Event "CZE-ch Open 2019"]
[Site "Ostrava"]
[Date "2019.05.01"]
[Round "5.28"]
[White "Holy, Filip"]
[Black "Vokac, Marek"]
[Result "0-1"]
[ECO "B07"]
[WhiteElo "2096"]
[BlackElo "2343"]
[Annotator "NA"]
[PlyCount "70"]
[EventDate "2019.04.27"]
[EventType "swiss"]
[EventCountry "CZE"]
[SourceTitle "playchess.com"]
[Source "ChessBase"]
[SourceQuality "1"]
[TimeControl "40/5400+30:1800+30"]

1. d4 {[%emt 0:08:44]} d6 {[%emt 0:01:21]} 2. e4 {[%emt 0:00:13]} Nf6 {[%emt 0:00:09]} 3. Nc3 {[%emt 0:00:03]} c6 {[%emt 0:00:09]} 4. f4 {[%emt 0:00:11]} Qa5 {[%emt 0:00:20]} 5. Bd3 {[%emt 0:00:04]} e5 {[%emt 0:00:21]} 6. Nf3 {[%emt 0:00:03]} Nbd7 {[%emt 0:02:37]} 7. Be3 {[%emt 0:04:36]} Ng4 {[%emt 0:31:38]} 8. Bg1 {[%emt 0:00:12]} exf4 {[%emt 0:00:39]} 9. Qd2 {[%emt 0:00:23]} Ne3 {[%emt 0:01:33]} 10. g3 {[%emt 0:02:04]} Qh5 {[%emt 0:01:04]} 11. Qe2 {[%emt 0:06:07]} Nf6 {[%emt 0:01:33]} 12. Bxe3 {[%emt 0:06:44]} fxe3 {[%emt 0:00:40]} 13. Qxe3 {[%emt 0:00:17]} g6 {[%emt 0:01:55]} 14. e5 {[%emt 0:08:42]} Ng4 {[%emt 0:15:27]} 15. Qe2 {[%emt 0:00:07]} d5 {[%emt 0:02:40]} 16. O-O {[%emt 0:05:05]} Be6 {[%emt 0:01:27]} 17. Na4 {[%emt 0:00:27]} Bh6 {[%emt 0:04:43]} 18. Nc5 {[%emt 0:00:29]} O-O {[%emt 0:00:53]} 19. Nxb7 {[%emt 0:01:18]} Rab8 {[%emt 0:01:04]} 20. Na5 {[%emt 0:00:55]} c5 {[%emt 0:00:26]} 21. b3 {[%emt 0:01:33]} Rb6 {[%emt 0:04:49]} 22. c3 {[%emt 0:01:49]} cxd4 {[%emt 0:02:35]} 23. cxd4 {[%emt 0:00:38]} Ne3 {[%emt 0:00:14]} 24. Rf2 {[%emt 0:01:12]} Bh3 {[%emt 0:00:15]} 25. Nh4 {[%emt 0:05:41]} Bg4 {[%emt 0:04:14]} 26. Qb2 {[%emt 0:01:50]} Nd1 {[%emt 0:01:09]} 27. Rxd1 {[%emt 0:00:26]} Bxd1 {[%emt 0:00:03]} 28. Ng2 {[%emt 0:00:32]} Bf3 {[%emt 0:02:10]} 29. Qc2 {[%emt 0:00:27]} Bxg2 {[%emt 0:01:20]} 30. Kxg2 {[%emt 0:00:04]} Be3 {[%emt 0:00:20]} 31. Rf3 {[%emt 0:00:46]} Bxd4 {[%emt 0:02:18]} 32. Nc6 {[%emt 0:00:03]} Bxe5 {[%emt 0:03:13]} 33. Ne7+ {[%emt 0:00:18]} Kh8 {[%emt 0:00:44]} 34. Qc5 {[%emt 0:00:41]} Bd6 {[%emt 0:02:29]} 35. Qe3 {[%emt 0:01:31]} Qe5 {[%emt 0:02:57]} 0-1

[Event "CZE-ch Open 2019"]
[Site "Ostrava"]
[Date "2019.05.01"]
[Round "5.29"]
[White "Obsivac, Josef"]
[Black "Kolar, Stanislav"]
[Result "1-0"]
[ECO "E11"]
[WhiteElo "2285"]
[BlackElo "2091"]
[Annotator "NA"]
[PlyCount "103"]
[EventDate "2019.04.27"]
[EventType "swiss"]
[EventCountry "CZE"]
[SourceTitle "playchess.com"]
[Source "ChessBase"]
[SourceQuality "1"]
[TimeControl "40/5400+30:1800+30"]

1. d4 {[%emt 0:00:00]} Nf6 {[%emt 0:00:00]} 2. c4 {[%emt 0:00:00]} e6 {[%emt 0:00:02]} 3. Nf3 {[%emt 0:00:00]} Bb4+ {[%emt 0:00:34]} 4. Nbd2 {[%emt 0:00:14]} d5 {[%emt 0:01:05]} 5. Qa4+ {[%emt 0:01:43]} Nc6 {[%emt 0:00:11]} 6. a3 {[%emt 0:00:19]} Be7 {[%emt 0:00:13]} 7. e3 {[%emt 0:03:00]} O-O {[%emt 0:00:23]} 8. Qc2 {[%emt 0:00:32]} a5 {[%emt 0:01:04]} 9. b3 {[%emt 0:00:33]} Bd7 {[%emt 0:01:00]} 10. Bd3 {[%emt 0:01:21]} h6 {[%emt 0:01:35]} 11. Bb2 {[%emt 0:02:26]} b6 {[%emt 0:03:31]} 12. O-O {[%emt 0:01:02]} Na7 {[%emt 0:11:24]} 13. e4 {[%emt 0:04:20]} c6 {[%emt 0:01:24]} 14. e5 {[%emt 0:13:22]} Nh5 {[%emt 0:00:49]} 15. g3 {[%emt 0:01:57]} g5 {[%emt 0:00:20]} 16. Qd1 {[%emt 0:04:18]} Ng7 {[%emt 0:02:24]} 17. Qe2 {[%emt 0:04:49]} c5 {[%emt 0:02:57]} 18. Rac1 {[%emt 0:09:00]} Nc6 {[%emt 0:00:59]} 19. Bb1 {[%emt 0:00:48]} g4 {[%emt 0:01:24]} 20. Ne1 {[%emt 0:02:05]} cxd4 {[%emt 0:01:58]} 21. Qxg4 {[%emt 0:04:50]} Nxe5 {[%emt 0:00:51]} 22. Qe2 {[%emt 0:04:24]} Ng6 {[%emt 0:03:55]} 23. cxd5 {[%emt 0:03:22]} exd5 {[%emt 0:02:18]} 24. Nef3 {[%emt 0:00:22]} Bg4 {[%emt 0:02:19]} 25. Rc6 {[%emt 0:04:59]} Bf6 {[%emt 0:01:46]} 26. Qb5 {[%emt 0:09:24]} Bd7 {[%emt 0:01:05]} 27. Qxb6 {[%emt 0:01:31]} Bxc6 {[%emt 0:00:38]} 28. Qxc6 {[%emt 0:00:03]} Rc8 {[%emt 0:01:45]} 29. Qa6 {[%emt 0:02:22]} Ne6 {[%emt 0:04:14]} 30. Re1 {[%emt 0:03:33]} Nc5 {[%emt 0:07:35]} 31. Qf1 {[%emt 0:00:44]} Re8 {[%emt 0:03:30]} 32. Rxe8+ {[%emt 0:01:15]} Qxe8 {[%emt 0:00:01]} 33. Qh3 {[%emt 0:00:28]} Kg7 {[%emt 0:01:40]} 34. Nxd4 {[%emt 0:05:54]} Bxd4 {[%emt 0:08:37]} 35. Bxd4+ {[%emt 0:00:06]} f6 {[%emt 0:00:45]} 36. Qf5 {[%emt 0:08:27]} Rc6 {[%emt 0:01:15]} 37. Kg2 {[%emt 0:01:49]} Qf7 {[%emt 0:03:19]} 38. Bxc5 {[%emt 0:01:34]} Rxc5 {[%emt 0:00:13]} 39. Nf3 {[%emt 0:00:18]} Rc1 {[%emt 0:03:00]} 40. Nd4 {[%emt 0:00:40]} Nf8 {[%emt 0:01:05]} 41. Qg4+ {[%emt 0:31:43]} Kh8 {[%emt 0:31:20]} 42. Bf5 {[%emt 0:00:00]} Re1 {[%emt 0:00:00]} 43. Qf4 {[%emt 0:00:00]} Qg7 {[%emt 0:00:00]} 44. Qd2 {[%emt 0:00:00]} Re5 {[%emt 0:00:00]} 45. Qxa5 Qb7 {[%emt 0:00:00]} 46. Qd2 {[%emt 0:00:00]} Kg7 {[%emt 0:00:00]} 47. Qd3 {[%emt 0:00:00]} Qc7 {[%emt 0:00:00]} 48. Nf3 {[%emt 0:00:00]} Re8 {[%emt 0:00:00]} 49. Qxd5 {[%emt 0:00:00]} Re2 {[%emt 0:00:00]} 50. Bd3 {[%emt 0:00:00]} Re7 {[%emt 0:00:00]} 51. Bc4 {[%emt 0:00:00]} Ne6 {[%emt 0:00:00]} 52. Nd4 {[%emt 0:00:00]} 1-0

[Event "CZE-ch Open 2019"]
[Site "Ostrava"]
[Date "2019.05.01"]
[Round "5.30"]
[White "Koubova, Anna Marie"]
[Black "Jurek, Josef"]
[Result "1/2-1/2"]
[ECO "D37"]
[WhiteElo "2005"]
[BlackElo "2269"]
[Annotator "NA"]
[PlyCount "53"]
[EventDate "2019.04.27"]
[EventType "swiss"]
[EventCountry "CZE"]
[SourceTitle "playchess.com"]
[Source "ChessBase"]
[SourceQuality "1"]
[TimeControl "40/5400+30:1800+30"]

1. d4 Nf6 2. c4 e6 3. Nf3 d5 4. Nc3 dxc4 5. e3 a6 6. a4 c5 7. Bxc4 Nc6 8. O-O cxd4 9. exd4 Nb4 10. Bg5 Be7 11. Qe2 O-O 12. Rfe1 Bd7 13. Ne5 Rc8 14. Rad1 Rc7 15. Bb3 Bc6 16. Nxc6 bxc6 17. Bf4 Rb7 18. Be5 a5 19. Ne4 Nxe4 20. Qxe4 Bf6 21. Re3 Rd7 22. Rf3 Bxe5 23. Qxe5 Qc7 24. Qg5 Qd8 25. Qe5 Qc7 26. Qg5 Qd8 27. Qe5 1/2-1/2

[Event "CZE-ch Open 2019"]
[Site "Ostrava"]
[Date "2019.05.01"]
[Round "5.31"]
[White "Bulockin, Martin"]
[Black "Vorisek, Jakub"]
[Result "1/2-1/2"]
[ECO "C03"]
[WhiteElo "2199"]
[BlackElo "1991"]
[Annotator "NA"]
[PlyCount "71"]
[EventDate "2019.04.27"]
[EventType "swiss"]
[EventCountry "CZE"]
[SourceTitle "playchess.com"]
[Source "ChessBase"]
[SourceQuality "1"]
[TimeControl "40/5400+30:1800+30"]

1. e4 {[%emt 0:00:00]} e6 {[%emt 0:00:00]} 2. d4 {[%emt 0:00:05]} d5 {[%emt 0:00:04]} 3. Nd2 {[%emt 0:00:33]} a6 {[%emt 0:00:19]} 4. Ngf3 {[%emt 0:02:52]} c5 {[%emt 0:00:17]} 5. exd5 {[%emt 0:00:27]} exd5 {[%emt 0:00:08]} 6. dxc5 {[%emt 0:00:49]} Bxc5 {[%emt 0:00:07]} 7. Bd3 {[%emt 0:00:22]} Qe7+ {[%emt 0:00:21]} 8. Qe2 {[%emt 0:00:32]} Nc6 {[%emt 0:00:21]} 9. Nb3 {[%emt 0:03:17]} Bb6 {[%emt 0:01:01]} 10. c3 {[%emt 0:07:02]} Bg4 {[%emt 0:01:51]} 11. Qxe7+ {[%emt 0:03:25]} Ngxe7 {[%emt 0:00:09]} 12. Nfd4 {[%emt 0:07:27]} Nxd4 {[%emt 0:04:32]} 13. Nxd4 {[%emt 0:00:09]} Bxd4 {[%emt 0:00:28]} 14. cxd4 {[%emt 0:00:02]} Nc6 {[%emt 0:00:12]} 15. Be3 {[%emt 0:00:08]} Nb4 {[%emt 0:04:19]} 16. Bb1 {[%emt 0:00:30]} Rc8 {[%emt 0:00:26]} 17. Kd2 {[%emt 0:00:10]} O-O {[%emt 0:00:28]} 18. a3 {[%emt 0:02:40]} Nc6 {[%emt 0:00:22]} 19. Ba2 {[%emt 0:00:34]} Be6 {[%emt 0:04:26]} 20. Rac1 {[%emt 0:09:24]} Na5 {[%emt 0:09:10]} 21. b3 {[%emt 0:01:47]} Rfd8 {[%emt 0:09:40]} 22. Rxc8 {[%emt 0:04:42]} Rxc8 {[%emt 0:02:11]} 23. Rc1 {[%emt 0:00:59]} Rxc1 {[%emt 0:01:12]} 24. Kxc1 {[%emt 0:01:35]} Kf8 {[%emt 0:00:33]} 25. Kb2 {[%emt 0:02:14]} Ke7 {[%emt 0:01:08]} 26. Bb1 {[%emt 0:00:27]} g6 {[%emt 0:00:35]} 27. Kc3 {[%emt 0:00:41]} Bf5 {[%emt 0:08:52]} 28. Bxf5 {[%emt 0:00:35]} gxf5 {[%emt 0:00:05]} 29. Bf4 {[%emt 0:05:01]} Kd7 {[%emt 0:01:51]} 30. a4 {[%emt 0:03:53]} Kc6 {[%emt 0:05:48]} 31. Bg5 {[%emt 0:04:01]} Kd7 {[%emt 0:02:13]} 32. f3 {[%emt 0:01:21]} Ke8 {[%emt 0:02:56]} 33. Bc1 {[%emt 0:02:52]} Kd7 {[%emt 0:02:18]} 34. Ba3 {[%emt 0:00:19]} Nc6 {[%emt 0:04:48]} 35. Bc5 {[%emt 0:01:24]} b5 {[%emt 0:04:56]} 36. axb5 {[%emt 0:10:07]} 1/2-1/2

[Event "CZE-ch Open 2019"]
[Site "Ostrava"]
[Date "2019.05.01"]
[Round "5.32"]
[White "Pavlicek, Lukas"]
[Black "Bartos, Jan"]
[Result "1/2-1/2"]
[ECO "A30"]
[WhiteElo "1963"]
[BlackElo "2178"]
[Annotator "NA"]
[PlyCount "95"]
[EventDate "2019.04.27"]
[EventType "swiss"]
[EventCountry "CZE"]
[SourceTitle "playchess.com"]
[Source "ChessBase"]
[SourceQuality "1"]
[TimeControl "40/5400+30:1800+30"]

1. c4 {[%emt 0:00:00]} Nf6 {[%emt 0:00:00]} 2. Nc3 {[%emt 0:00:00]} c5 {[%emt 0:00:00]} 3. Nf3 {[%emt 0:00:00]} e6 {[%emt 0:00:04]} 4. g3 {[%emt 0:00:05]} b6 {[%emt 0:00:20]} 5. Bg2 {[%emt 0:00:07]} Bb7 {[%emt 0:00:05]} 6. O-O {[%emt 0:00:31]} Be7 {[%emt 0:00:07]} 7. d4 {[%emt 0:00:20]} cxd4 {[%emt 0:00:11]} 8. Qxd4 {[%emt 0:00:11]} O-O {[%emt 0:01:00]} 9. Rd1 {[%emt 0:02:00]} d6 {[%emt 0:10:44]} 10. b3 {[%emt 0:05:57]} Nbd7 {[%emt 0:03:38]} 11. e4 {[%emt 0:07:41]} a6 {[%emt 0:03:52]} 12. Ba3 {[%emt 0:09:26]} Nc5 {[%emt 0:01:52]} 13. e5 {[%emt 0:03:01]} dxe5 {[%emt 0:02:47]} 14. Qxd8 {[%emt 0:03:20]} Rfxd8 {[%emt 0:01:23]} 15. Nxe5 {[%emt 0:09:49]} Bxg2 {[%emt 0:02:03]} 16. Kxg2 {[%emt 0:00:05]} Bf8 {[%emt 0:10:46]} 17. Nc6 {[%emt 0:09:32]} Rdc8 {[%emt 0:04:37]} 18. Ne5 {[%emt 0:02:38]} b5 {[%emt 0:11:17]} 19. cxb5 {[%emt 0:10:12]} axb5 {[%emt 0:01:48]} 20. Nxb5 {[%emt 0:01:12]} Ra5 {[%emt 0:00:57]} 21. Bxc5 {[%emt 0:00:19]} Rxc5 {[%emt 0:05:43]} 22. b4 {[%emt 0:01:25]} Rxe5 {[%emt 0:00:22]} 23. bxa5 {[%emt 0:00:05]} Rxb5 {[%emt 0:00:04]} 24. Rd8 {[%emt 0:02:10]} Rxa5 {[%emt 0:01:19]} 25. Rc1 {[%emt 0:02:22]} Ra7 {[%emt 0:02:37]} 26. Rcc8 {[%emt 0:02:45]} Nd7 {[%emt 0:00:24]} 27. a4 {[%emt 0:01:59]} g6 {[%emt 0:13:36]} 28. a5 {[%emt 0:01:59]} Kg7 {[%emt 0:00:55]} 29. Ra8 {[%emt 0:03:55]} Rxa8 {[%emt 0:04:55]} 30. Rxa8 {[%emt 0:00:04]} Nc5 {[%emt 0:00:15]} 31. a6 {[%emt 0:03:13]} Nxa6 {[%emt 0:00:06]} 32. Rxa6 {[%emt 0:00:03]} h5 {[%emt 0:00:35]} 33. Ra7 {[%emt 0:00:20]} Bc5 {[%emt 0:00:19]} 34. Rc7 {[%emt 0:00:13]} Bd4 {[%emt 0:00:21]} 35. f3 {[%emt 0:00:30]} e5 {[%emt 0:02:37]} 36. Kf1 {[%emt 0:03:17]} Kf6 {[%emt 0:00:33]} 37. Ke2 {[%emt 0:03:40]} Ke6 {[%emt 0:00:32]} 38. h3 {[%emt 0:01:57]} f5 {[%emt 0:01:29]} 39. Rc6+ {[%emt 0:00:11]} Kf7 {[%emt 0:00:06]} 40. Rd6 {[%emt 0:02:55]} Kg7 {[%emt 0:01:57]} 41. Rd5 {[%emt 0:36:40]} Bc3 {[%emt 0:31:36]} 42. Rd1 {[%emt 0:00:00]} Kf6 {[%emt 0:00:00]} 43. Kd3 {[%emt 0:00:00]} Bd4 {[%emt 0:00:00]} 44. Rd2 {[%emt 0:00:00]} Bb6 {[%emt 0:00:00]} 45. Rc2 {[%emt 0:00:00]} Ba5 {[%emt 0:00:00]} 46. Rc6+ {[%emt 0:00:00]} Kf7 {[%emt 0:00:00]} 47. Ke2 {[%emt 0:00:00]} Bb4 {[%emt 0:00:00]} 48. Rc7+ {[%emt 0:01:05]} 1/2-1/2